Cogmind - Beta 17 *** ADVENTURER MODE // 2026.06.27 @ 23:37:40 Player: Iris Result: Self-destructed Performance ------------- Evolutions (2) 1000 Regions Visited (4) 800 Robots Destroyed (26) 130 Value Destroyed (617) 617 Prototype IDs (1) 20 Alien Tech Used (0) 0 Bonus (0) 0 TOTAL SCORE: 2567 Bonus ------- None Cogmind --------- Core Integrity 195/550 Matter 238/300 Energy 100/100 System Corruption 5% Temperature Cool (0) Movement Core (100) Ox1 Location -8/Materials Parts ------- > --- POWER (2) -------- (None) > --- PROPULSION (3) --- (None) > --- UTILITY (2) ------ (None) > --- WEAPON (4) ------- Faulty Heavy EM Shotgun > --- INVENTORY (5) ---- Medium Battery (150) Medium Matter Pod (93) Medium Laser Peak State ------------ > --- POWER ------------ (None) > --- PROPULSION ------- Wheel Backup Propulsion I > --- UTILITY ---------- Medium Matter Pod Backup Plating I > --- WEAPON ----------- EM Shotgun EM Shotgun Beam Rifle > --- INVENTORY -------- Improved Aluminum Leg Medium Battery Improved Targeting Computer Medium Laser Datajack [Rating: 10] Favorites ----------- Power Light Ion Engine Engine Light Ion Engine Propulsion Wheel Leg Aluminum Leg Wheel Wheel Hover Unit Backup Propulsion I Utility Medium Matter Pod Device Reaction Control System Storage Medium Matter Pod Protection Backup Plating I Weapon EM Shotgun Energy Gun EM Shotgun Ballistic Gun Assault Rifle Launcher Mini Grenade Launcher Special Melee Weapon Datajack Build | -11 -10 -9 -9 -8 ------- Run | Yrd Mat Mat Min Mat Slots Evolved 4 | . . 2 . 2 Power 1 | . . . . 1 Propulsion 1 | . . 1 . . Utility . | . . . . . Weapon 2 | . . 1 . 1 Parts Attached 19 | 3 9 1 . 6 Power 1 | . 1 . . . Engine 1 | . 1 . . . Core . | . . . . . Reactor . | . . . . . Propulsion 4 | 2 2 . . . Treads . | . . . . . Leg 2 | 2 . . . . Wheel 2 | . 2 . . . Hover . | . . . . . Flight . | . . . . . Utility 2 | . 1 . . 1 Device 1 | . . . . 1 Storage 1 | . 1 . . . Processor . | . . . . . Hackware . | . . . . . Protection . | . . . . . Artifact . | . . . . . Weapon 12 | 1 5 1 . 5 Energy Gun 7 | . 3 1 . 3 Energy Cannon . | . . . . . Ballistic Gun 3 | 1 1 . . 1 Ballistic Cannon . | . . . . . Launcher 1 | . . . . 1 Special Weapon . | . . . . . Impact Weapon . | . . . . . Slashing Weapon . | . . . . . Piercing Weapon . | . . . . . Special Melee Weapon 1 | . 1 . . . Unidentified Prototypes 1 | . . . . 1 Parts Lost 15 | . 6 1 1 7 Power 1 | . . 1 . . Propulsion 5 | . 3 . 1 1 Utility . | . . . . . Weapon 9 | . 3 . . 6 Highest Loss Streak 4 | . 3 1 1 4 To Critical Strikes . | . . . . . Average Backups 3 | 3 2 3 5 4 Power . | . . . . . Propulsion . | 1 1 . . . Utility 1 | . . . 2 1 Weapon 1 | 1 . . 2 2 Tool/Special . | . . . . . Unused Backups 4 | . . 1 . 3 Power . | . . . . . Propulsion 1 | . . 1 . . Utility 2 | . . . . 2 Weapon 1 | . . . . 1 Tool/Special . | . . . . . Average Slot Usage (%) 53 | . 52 63 66 25 Engine 4 | . 8 9 . . Leg 2 | . 7 . . . Wheel 6 | . 14 11 . . Hover 5 | . . 4 11 6 Storage 6 | . 1 11 11 . Protection 4 | . . 4 11 1 Energy Gun 20 | . 10 23 33 14 Ballistic Gun 2 | . 6 . . . Peak Build Rating 10 | 3 7 10 10 10 Average Rating 6 | 2 4 7 9 4 On Entrance 5 | . 3 7 10 9 Avg Prop Armor Cover (%) 5 | . . 5 . . Naked Turns 9 | . . . . 9 Heaviest Build 12 | 2 11 12 12 12 Greatest Support 20 | 20 20 10 6 6 Greatest Overweight (x) 2 | . 1 1 1 2 Average Overweight (x) . | . . 1 1 . Largest Inventory Capacity 5 | 5 5 5 5 5 Average Capacity 5 | 5 5 5 5 5 Most Carried 5 | 5 5 5 5 5 Average Carried 3 | 4 2 3 5 4 Final Capacity 5 | 5 5 5 5 5 Final Carried 5 | 5 2 5 5 3 Class Distribution -------------------- 67% | Mutant 29% | Tank 3% | Gunner Dominant Class ---------------- Mutant | -10/Materials Mutant | -9/Materials Tank | -9/Mines Mutant | -8/Materials Resources | -11 -10 -9 -9 -8 ----------- Run | Yrd Mat Mat Min Mat Matter Collected 469 | 230 79 120 . 40 Remotely . | . . . . . Salvage Created 761 | 38 339 212 50 122 Parts 57 | 3 20 12 6 16 Haulers Intercepted . | . . . . . Recyclers Shooed 1 | . 1 . . . Parts Field Recycled . | . . . . . Retrieved Matter . | . . . . . Parts Self-Destructed . | . . . . . Prevented . | . . . . . Parts Restored . | . . . . . Kills | -11 -10 -9 -9 -8 ------- Run | Yrd Mat Mat Min Mat Combat Hostiles Destroyed 20 | 1 9 4 3 3 Guns 19 | 1 9 4 3 2 AOE 1 | . . . . 1 Classes Destroyed 7 | 1 3 1 . 2 Worker 2 | . 2 . . . Builder 2 | . . . . 2 Watcher 2 | . 2 . . . Swarmer 7 | . 4 . 3 . Grunt 9 | 1 5 3 . . Brawler 1 | . . . . 1 Sentry 3 | . . 1 . 2 Best Kill Streak 8 | 1 8 3 3 5 Combat Bots Only 6 | 1 6 3 3 3 Max Kills in Single Turn 3 | 1 1 1 2 3 Gunslinging 1 | . . . 1 . Exploded 1 | . . . . 1 Melee . | . . . . . Uniques/NPCs Destroyed . | . . . . . Combat | -11 -10 -9 -9 -8 -------- Run | Yrd Mat Mat Min Mat Hostile Shots Fired 265 | 9 157 10 9 80 Missed 95 | 4 64 3 4 20 Hits 170 | 5 93 7 5 60 Projectile 170 | 5 93 7 5 60 Critical Strikes 2 | . 2 . . . Damage Taken 1680 | 43 729 80 35 793 Core 567 | 8 204 . . 355 Absorbed by Shields . | . . . . . Ignored by Resistances 501 | 14 228 21 10 228 Core Remaining (%) 70 | 96 15 . 100 . Volleys Fired 65 | 7 32 8 2 16 Largest 3 | 1 2 2 3 3 Hottest 160 | 20 90 90 146 160 Shots Fired 111 | 7 56 16 6 26 Gun 107 | 7 56 16 6 22 Cannon . | . . . . . Launcher 4 | . . . . 4 Special . | . . . . . Kinetic 42 | 7 26 . . 9 Thermal 34 | . 19 . 2 13 Explosive 4 | . . . . 4 Electromagnetic 31 | . 11 16 4 . Robot Hit Streak 15 | 7 10 15 4 7 Robot Miss Streak 2 | . 2 2 1 1 Penetration Max . | . . . . . Secondary Targets 4 | . 3 . 1 . Max Gunslinging Chain 1 | . 1 . 1 . Shots Hit Robots 93 | 7 48 14 4 20 Core Hits 54 | 4 22 13 3 12 Critical Kills . | . . . . . Critical Parts Destroyed . | . . . . . Critical Strikes 3 | . 3 . . . Burn 3 | . 3 . . . Melee Attacks 4 | . 4 . . . Impact . | . . . . . Slashing . | . . . . . Piercing . | . . . . . Sneak Attacks . | . . . . . Combat Hostiles . | . . . . . Follow-up Attacks . | . . . . . Damage Inflicted 1590 | 97 551 235 38 669 Guns 1152 | 92 549 229 38 244 Cannons . | . . . . . Explosions 425 | . . . . 425 Melee . | . . . . . Ramming 13 | 5 2 6 . . Kinetic 357 | 92 177 . . 88 Thermal 373 | . 203 . 14 156 Explosive 425 | . . . . 425 Electromagnetic 422 | . 169 229 24 . Impact . | . . . . . Slashing . | . . . . . Piercing . | . . . . . Highest Corruption 5 | . . . . 5 Average Corruption 5 | . . . . 5 Corruption Purged . | . . . . . Corruption Blocked . | . . . . . Effects 1 | . . . . 1 Message Errors 1 | . . . . 1 Overload Shots . | . . . . . Overflow Damage 7 | . . . . 7 Projectiles . | . . . . . Explosions 7 | . . . . 7 Melee . | . . . . . Knockbacks . | . . . . . Impact . | . . . . . Kinetic . | . . . . . Secondary . | . . . . . Self-Inflicted Damage 104 | . . 2 . 102 Shots 4 | . . . . 4 Rammed 3 | . . 3 . . Targets Rammed 7 | 3 1 3 . . Kicked 4 | 3 1 . . . Crushed . | . . . . . Highest Temperature 350 | . 177 99 66 350 Average Temperature 97 | . 77 42 37 203 Received Heat Transfer 705 | 30 372 51 . 252 Effects 2 | . . . . 2 Interference 2 | . . . . 2 Siege Activations . | . . . . . Martial Activations . | . . . . . Shielding Activations . | . . . . . Robots Disrupted . | . . . . . Combat Hostiles . | . . . . . Robots Corrupted . | . . . . . Combat Hostiles . | . . . . . Parts Fried 1 | . . 1 . . Impact Corruptions . | . . . . . Robots Melted . | . . . . . Combat Hostiles . | . . . . . Parts Melted 3 | . 2 . 1 . Heat Transferred 1221 | . 814 . 37 370 Parts Sabotaged . | . . . . . Parts Stolen . | . . . . . Parts Stripped . | . . . . . Power Chain Reactions . | . . . . . Alert | -11 -10 -9 -9 -8 ------- Run | Yrd Mat Mat Min Mat Maximum Alert Level . | . . . . . Low Security (%) 100 | 100 100 100 100 100 Level 1 . | . . . . . Level 2 . | . . . . . Level 3 . | . . . . . Level 4 . | . . . . . Level 5 . | . . . . . High Security . | . . . . . Max Security . | . . . . . Peak Influence 113 | 20 113 100 86 101 Initial 26 | . 5 19 26 . Average 30 | . 53 38 20 13 Influence Increases 651 | 20 275 150 70 136 Destroy 0b10 Robot/C 400 | 20 180 80 60 60 Destroy 0b10 Robot/NC 30 | . 20 . . 10 Destroy Leader 104 | . 44 20 10 30 Successful Hack 5 | . . 5 . . Destroy Structure 22 | . 1 . . 21 Partial Spotted 15 | . . . . 15 Lose Combat Pursuer 75 | . 30 45 . . Influence Decreases 590 | 10 230 125 150 75 Entered New Map 95 | . 5 36 54 . Time Decay 375 | 10 165 79 86 35 Lost Part 120 | . 60 10 10 40 Squads Dispatched 3 | . 1 1 . 1 Investigation 1 | . 1 . . . Extermination . | . . . . . Reinforcement 1 | . . 1 . . Assault . | . . . . . Garrison 1 | . . . . 1 Intercept . | . . . . . Searches Triggered . | . . . . . Construction Impeded . | . . . . . Haulers Reinforced . | . . . . . Active Scanning Responses . | . . . . . Cargo Convoy Interrupts . | . . . . . Stealth | -11 -10 -9 -9 -8 --------- Run | Yrd Mat Mat Min Mat Distress Signals 5 | . 1 1 . 3 Communications Jammed . | . . . . . Distress Signals . | . . . . . Times Spotted 41 | 1 18 10 3 9 Peak Tracking Total 8 | 1 8 4 3 5 Tactical Retreats 2 | . 1 1 . . Traps | -11 -10 -9 -9 -8 ------- Run | Yrd Mat Mat Min Mat Traps Triggered 1 | . 1 . . . Indirectly . | . . . . . Trap Hack Attempts . | . . . . . Triggered . | . . . . . Disarmed . | . . . . . Reprogrammed . | . . . . . Reused . | . . . . . Traps Extracted . | . . . . . Installed . | . . . . . Triggered . | . . . . . Machines | -11 -10 -9 -9 -8 ---------- Run | Yrd Mat Mat Min Mat Machines Disabled . | . . . . . Max in Single Turn . | . . . . . Machines Repaired . | . . . . . Machines Dismantled . | . . . . . Machines Sabotaged . | . . . . . Overloaded Fab Kills . | . . . . . Hacking | -11 -10 -9 -9 -8 --------- Run | Yrd Mat Mat Min Mat Machines Accessed 1 | . . 1 . . Terminals . | . . . . . Fabricators . | . . . . . Repair Stations 1 | . . 1 . . Recycling Units . | . . . . . Scanalyzers . | . . . . . Garrison Access . | . . . . . Total Hacks 3 | . . 3 . . Successful 1 | . . 1 . . Failed 2 | . . 2 . . Catastrophic . | . . . . . Database Lockouts . | . . . . . Manual . | . . . . . Terminals . | . . . . . Fabricators . | . . . . . Repair Stations 3 | . . 3 . . Recycling Units . | . . . . . Scanalyzers . | . . . . . Garrison Access . | . . . . . Terminal Hacks . | . . . . . Fabricator Hacks . | . . . . . Repair Station Hacks 1 | . . 1 . . Refit 1 | . . 1 . . Recycling Unit Hacks . | . . . . . Scanalyzer . | . . . . . Garrison Access Hacks . | . . . . . Unauthorized Hacks . | . . . . . Terminals . | . . . . . Fabricators . | . . . . . Repair Stations . | . . . . . Recycling Units . | . . . . . Scanalyzers . | . . . . . Garrison Access . | . . . . . Data Cores Recovered . | . . . . . Used . | . . . . . Hacking Detections 1 | . . 1 . . Full Trace Events . | . . . . . Feedback Events . | . . . . . Feedback Blocked . | . . . . . Robot Schematics Acquired . | . . . . . Robots Built . | . . . . . Authchips . | . . . . . Time . | . . . . . Total Robot Build Rating . | . . . . . Part Schematics Acquired . | . . . . . Parts Built . | . . . . . Authchips . | . . . . . Time . | . . . . . Total Part Build Rating . | . . . . . Part Studies Acquired . | . . . . . Parts Repaired . | . . . . . Time . | . . . . . Parts Recycled . | . . . . . Recycled Matter . | . . . . . Retrieved Matter . | . . . . . Retrieved Components . | . . . . . Parts Scanalyzed . | . . . . . Part Schematics Acquired . | . . . . . Parts Damaged . | . . . . . Bothacking | -11 -10 -9 -9 -8 ------------ Run | Yrd Mat Mat Min Mat Used RIF Installer . | . . . . . Robots Hacked 1 | . 1 . . . Non-combat . | . . . . . Combat 1 | . 1 . . . Robot Hacks Applied 2 | . 2 . . . parse_system 2 | . 2 . . . Relay Couplers Released . | . . . . . Fabnet Peak Effective % . | . . . . . Robots Rewired . | . . . . . Allies Hacked . | . . . . . Hacks Repelled . | . . . . . Allies | -11 -10 -9 -9 -8 -------- Run | Yrd Mat Mat Min Mat Total Allies . | . . . . . Largest Group . | . . . . . Highest-Rated Group . | . . . . . Highest-Rated Ally . | . . . . . Total Orders . | . . . . . Ally Attacks . | . . . . . Total Damage . | . . . . . Kills . | . . . . . Allies Corrupted . | . . . . . Allies Melted . | . . . . . Intel | -11 -10 -9 -9 -8 ------- Run | Yrd Mat Mat Min Mat Active Infowar (turns) . | . . . . . Robot Analysis Total . | . . . . . Derelict Logs Recovered 1 | . . . 1 . Drone Launches . | . . . . . Drone Recoveries . | . . . . . Exploration | -11 -10 -9 -9 -8 ------------- Run | Yrd Mat Mat Min Mat Turns Passed 1417 | 102 404 270 368 273 Spaces Moved 1089 | 75 330 207 226 251 Core 57 | 22 3 . . 32 Treads . | . . . . . Legs 125 | 53 72 . . . Wheels 405 | . 255 150 . . Hover 502 | . . 57 226 219 Flight . | . . . . . Fastest Speed 50 | 50 50 95 160 50 Average Speed 108 | 99 90 114 160 84 Slowest Speed 165 | 120 120 165 165 160 Overloaded Moves . | . . . . . Propulsion Burnouts . | . . . . . Robots Hopped . | . . . . . Potential Cave-ins . | . . . . . Cave-ins Triggered . | . . . . . Exploration Rate (%) 24 | 8 39 18 42 13 Regions Visited 4 Branch Regions 1 Pre-discovered Areas 1 | . . . 1 . Known Exits Taken . | . . . . . Unknown Exits Taken 4 | 1 1 1 1 . Scrap Searched . | . . . . . Spaces Dug . | . . . . . Terrain Destroyed 20 | . . . . 20 Melee . | . . . . . Projectile . | . . . . . AOE 20 | . . . . 20 Terrain Rammed . | . . . . . Walls Destroyed . | . . . . . Machines Disabled . | . . . . . Actions | -11 -10 -9 -9 -8 --------- Run | Yrd Mat Mat Min Mat Total 1217 | 94 381 223 228 291 Wait 1 | . . . 1 . Move 1085 | 74 329 206 225 251 Hop . | . . . . . Pick Up 22 | 7 5 4 . 6 Fast Attach 6 | 1 . 1 . 4 Attach 14 | 2 9 . . 3 Detach 2 | . 1 . . 1 Swap . | . . . . . Drop 11 | . . 1 . 10 Fire 65 | 7 32 8 2 16 Melee 4 | . 4 . . . Ram 3 | . . 3 . . Kick 4 | 3 1 . . . Crush . | . . . . . Escape Stasis . | . . . . . Rewire . | . . . . . Trap . | . . . . . Miscellaneous . | . . . . . Route ------- -11/Scrapyard -10/Materials -9/Materials -9/Mines -8/Materials (discovered 1 exit: [*Sto]) History --------- Turn | Location | Event 2 | -11/Scrapyard | Met Revision 17 75 | -11/Scrapyard | Discovered new exit (range 8) 103 | -11/Scrapyard | Entered Materials 233 | -10/Materials | Core integrity fell below 50% 247 | -10/Materials | Lost 3 parts (2n1w) 302 | -10/Materials | Build established: Mutant 371 | -10/Materials | Core integrity fell below 20% 448 | -10/Materials | Discovered new exit (range 5) 507 | -10/Materials | Entered another Materials area 507 | -9/Materials | Evolved 2 slots: Propulsion x1, Weapon x1 708 | -9/Materials | Discovered new exit (range 13) 777 | -9/Materials | Entered Mines 900 | -9/Mines | Discovered new exit (range 12) 907 | -9/Mines | Learned location of Storage (-8) 1034 | -9/Mines | Build established: Tank 1145 | -9/Mines | Entered Materials 1145 | -8/Materials | Evolved 2 slots: Power x1, Weapon x1 1145 | -8/Materials | Discovered new exit (range 5) 1397 | -8/Materials | Garrison activated, responded to threat 1400 | -8/Materials | Core integrity fell below 50% 1418 | -8/Materials | Self-destructed Last Messages --------------- 01399_ Slug penetrates Wall. 01400_ U-05 Engineer builds a Wall. 01400_ K-01 Serf collects debris. 01401_ The unstable cave ceiling collapses. 01401_ Lgt. Treads crushed. 01404_ U-05 Engineer builds a Wall. 01405_ K-01 Serf collects debris. 01407_ Slug penetrates Wall. 01408_ K-01 Serf cleans the Terminal. 01409_ Slug penetrates Wall. 01411_ K-01 Serf cleans the Terminal. 01412_ HIQQS4YLK,GIRLMVXLA2YT,NBN0N 01413_ Slug penetrates Wall. 01415_ U-05 Engineer lays Concrete. 01415_ Slug penetrates Wall. 01416_ Wall collapses. 01416_ U-05 Engineer lays Concrete. 01417_ Hvy. Assault Rifle destroyed. 01418_ U-05 Engineer lays Concrete. 01418_ K-01 Serf collects debris. Map ----- +----------------------------------------------------+ | ?????????????????????????????????????????????????? | | ?????????????????????????????????????????????????? | | ?????????????????????????????????????????????????? | | ?????????????????????????????????????????????????? | | ?????????????????????????????????????????????????? | | ?????????????????????????????????????????????????? | | ?????????????????????????????????????????????????? | | ?????????????????????????????????????????????????? | | ?????????????????????????????????????????????????? | | ?????????????????????????????????????????????????? | | ?????????????????????????????????????????????????? | | ???????????????????????????? ?????????????????? | | ???????????????????????????? ???????????????? | | ???????????????????????????? ???????????????? | | ???????????????????????????? "???????????????? | | ???????????????????????????? ""??????????????? | | ???????????????????????????? "???????????????? | | ???????????????????????????? ???????????????? | | ???????????????????????????? ????????????????? | | ????????????????????????????# ######???????????? | | ?????????????????????????#### # ???????????? | | ???????????????????????### ## " "T" =?????????? | | ???????????????????????# [[!# # ????????????? | | ???????????????????????# [!# ##??????????????? | | ???????????????????????# = k #######????????? | | ???????????????????????# @%g# # *#????????? | | ???????????????????????# !/g """ #????????? | | ???????????????????????# ;hu "R" #????????? | | ???????????????????????# T #[ " " ########## | | ???????????????????????# " # w # ## | | ???????????????????????# ! "" ## [!! | | ???????????????????????###### ## "" ## ! | | ????????????????????????????# ## "" ## !![ | | ????????????????????????????# ## ## | | ????????????????????????????# ## """ ## | | ????????????????????????????# ## """ ## ! | | ????????????????????????????# # """ ## !/ ! | | ????????????????????????????# ##! ######+### | | ????????????????????????????# ####+####### # | | ????????????????????????????# # | | ????????????????????????????# < # | | ????????????????????????????# # | | ????????????????????????????# ######+## # | | ????????????????????????????# ## ## ## | | ????????????????????????????#]]!!!!## "" ## #? | | ????????????????????????????#]]!!!!## G" ## #? | | ????????????????????????????######### "" ## #? | | ????????????????????????????????????# ## #? | | ????????????????????????????????????# ######? | | ????????????????????????????????????# #?????? | +----------------------------------------------------+ Best States ------------- Heat Dissipation 31 Energy Generation 10 Energy Capacity 125 Matter Stores 393 Matter Capacity 400 Sight Range 16 Terrain Scan Density 10 Armor Coverage 80 Resistance: KI 20 Resistance: TH 20 Resistance: EX 20 Resistance: EM 20 Resistance: I 20 Resistance: S 20 Resistance: P 20 Evasion (%) 55 Offensive Hacking 10 Item Schematics ----------------- None Robot Schematics ------------------ None Fabricated ------------ Nothing Repaired ---------- Nothing Studied --------- None Alien Tech Used ----------------- None Achievements -------------- None Challenges ------------ None Game ------ Seed SurgeInsulatedReconfigurator Manual? 0 Play Time 00:25:46 Cumulative 28.9 hours Start 2026.06.27 @ 23:06:37 End 2026.06.27 @ 23:37:40 Sessions 1 Manual Loads 0 Difficulty Adventurer Special Mode None Game No. 67 Rogue 40 Adventurer 27 Explorer 0 Win Type - Total 0 Types 0/0/0/0/0/0/0/0/0/0 Lore% 13 Gallery% 27 Achievement% 17 Wizard Run 0 Options --------- Layout 1 ASCII 0 Keyboard 0 Movement Arrows Keybinds 0 Fullscreen 0 Font 28/SmallcapsGlow Map View 77x35 Zoom Use 0% Tactical HUD 1 Map Filters NONE Filters NONE Steam X RUN: f4ec486a-a69b-40cb-bebc-44bed29befdd